[Event "Titled Tuesday Blitz January 17 Early 2023"]
[White "Djokovic, Nebojsa"]
[Black "Batsiashvili, Nino"]
[WhiteFideId "938300"]
[BlackFideId "13602993"]
[WhiteElo "2119"]
[BlackElo "2467"]
[Result "0-1"]
[Round "10"]
[TimeControl "180+2"]
[Date "2023.01.17"]
[WhiteClock "0:00:15"]
[BlackClock "0:00:13"]

1. e4 {[%clk 0:03:00]}  e5 {[%clk 0:02:58]} 2. Nf3 {[%clk 0:03:01]}  Nc6 {[%clk 0:02:58]} 3. Bb5 {[%clk 0:03:02]}  Nge7 {[%clk 0:02:57]} 4. O-O {[%clk 0:03:01]}  Ng6 {[%clk 0:02:56]} 5. c3 {[%clk 0:03:01]}  d5 {[%clk 0:02:48]} 6. Re1 {[%clk 0:02:50]}  dxe4 {[%clk 0:02:42]} 7. Rxe4 {[%clk 0:02:48]}  Qd5 {[%clk 0:02:28]} 8. Bxc6+ {[%clk 0:02:47]}  bxc6 {[%clk 0:02:15]} 9. Re1 {[%clk 0:02:41]}  Bg4 {[%clk 0:02:11]} 10. d4 {[%clk 0:01:46]}  Bxf3 {[%clk 0:02:07]} 11. Qxf3 {[%clk 0:01:47]}  Qxf3 {[%clk 0:02:07]} 12. gxf3 {[%clk 0:01:47]}  O-O-O {[%clk 0:02:06]} 13. dxe5 {[%clk 0:01:44]}  Nh4 {[%clk 0:02:05]} 14. Nd2 {[%clk 0:01:24]}  Rxd2 {[%clk 0:01:47]} 15. Bxd2 {[%clk 0:01:25]}  Nxf3+ {[%clk 0:01:48]} 16. Kg2 {[%clk 0:01:25]}  Nxd2 {[%clk 0:01:46]} 17. b3 {[%clk 0:01:20]}  Be7 {[%clk 0:01:34]} 18. f4 {[%clk 0:00:54]}  Rd8 {[%clk 0:00:49]} 19. Rad1 {[%clk 0:00:47]}  Rd5 {[%clk 0:00:49]} 20. c4 {[%clk 0:00:23]}  Rd4 {[%clk 0:00:43]} 21. Re2 {[%clk 0:00:16]}  Bb4 {[%clk 0:00:42]} 22. a3 {[%clk 0:00:14]}  Bc3 {[%clk 0:00:38]} 23. Re3 {[%clk 0:00:14]}  Bb2 {[%clk 0:00:35]} 24. Re2 {[%clk 0:00:12]}  Bc3 {[%clk 0:00:33]} 25. Re3 {[%clk 0:00:12]}  Nxc4 {[%clk 0:00:18]} 26. Rxc3 {[%clk 0:00:06]}  Rxd1 {[%clk 0:00:17]} 27. Rxc4 {[%clk 0:00:06]}  Kd7 {[%clk 0:00:15]} 28. Ra4 {[%clk 0:00:07]}  Rb1 {[%clk 0:00:14]} 29. b4 {[%clk 0:00:07]}  c5 {[%clk 0:00:12]} 30. bxc5 {[%clk 0:00:06]}  Rc1 {[%clk 0:00:11]} 31. Rxa7 {[%clk 0:00:06]}  Rxc5 {[%clk 0:00:11]} 32. Kg3 {[%clk 0:00:06]}  h5 {[%clk 0:00:07]} 33. Kh4 {[%clk 0:00:05]}  Rc4 {[%clk 0:00:06]} 34. Kg5 {[%clk 0:00:05]}  Kc6 {[%clk 0:00:06]} 35. f5 {[%clk 0:00:02]}  Re4 {[%clk 0:00:05]} 36. Kxh5 {[%clk 0:00:02]}  Rxe5 {[%clk 0:00:05]} 37. Kg4 {[%clk 0:00:03]}  Re2 {[%clk 0:00:03]} 38. Ra6+ {[%clk 0:00:02]}  Kb7 {[%clk 0:00:03]} 39. Ra5 {[%clk 0:00:01]}  Rxh2 {[%clk 0:00:03]} 40. Kf4 {[%clk 0:00:01]}  Rh4+ {[%clk 0:00:02]} 41. Kg5 {[%clk 0:00:01]}  Rc4 {[%clk 0:00:03]} 42. Rb5+ {[%clk 0:00:02]}  Ka7 {[%clk 0:00:03]} 43. Rb3 {[%clk 0:00:03]}  Ka6 {[%clk 0:00:03]} 44. Kh5 {[%clk 0:00:03]}  c5 {[%clk 0:00:03]} 45. Rg3 {[%clk 0:00:04]}  Rf4 {[%clk 0:00:03]} 46. Kg5 {[%clk 0:00:03]}  Rf1 {[%clk 0:00:03]} 47. Rh3 {[%clk 0:00:04]}  c4 {[%clk 0:00:02]} 48. Re3 {[%clk 0:00:03]}  Kb5 {[%clk 0:00:02]} 49. Re7 {[%clk 0:00:04]}  f6+ {[%clk 0:00:03]} 50. Kg6 {[%clk 0:00:04]}  Rg1+ {[%clk 0:00:03]} 51. Kf7 {[%clk 0:00:04]}  c3 {[%clk 0:00:04]} 52. Rc7 {[%clk 0:00:04]}  Rg3 {[%clk 0:00:04]} 53. Ke6 {[%clk 0:00:04]}  Ka4 {[%clk 0:00:04]} 54. Ra7+ {[%clk 0:00:04]}  Kb3 {[%clk 0:00:05]} 55. a4 {[%clk 0:00:05]}  c2 {[%clk 0:00:05]} 56. Rc7 {[%clk 0:00:06]}  Rc3 {[%clk 0:00:05]} 57. Rxc3+ {[%clk 0:00:06]}  Kxc3 {[%clk 0:00:06]} 58. a5 {[%clk 0:00:06]}  c1=Q {[%clk 0:00:06]} 59. a6 {[%clk 0:00:07]}  Qa3 {[%clk 0:00:07]} 60. a7 {[%clk 0:00:08]}  Qxa7 {[%clk 0:00:08]} 61. Kd5 {[%clk 0:00:08]}  Qe7 {[%clk 0:00:08]} 62. Kc6 {[%clk 0:00:09]}  Qe5 {[%clk 0:00:08]} 63. Kb6 {[%clk 0:00:10]}  Qxf5 {[%clk 0:00:09]} 64. Kb7 {[%clk 0:00:10]}  g5 {[%clk 0:00:10]} 65. Kb8 {[%clk 0:00:11]}  g4 {[%clk 0:00:11]} 66. Kc7 {[%clk 0:00:12]}  g3 {[%clk 0:00:12]} 67. Kb7 {[%clk 0:00:13]}  g2 {[%clk 0:00:13]} 68. Ka6 {[%clk 0:00:13]}  g1=Q {[%clk 0:00:14]} 69. Kb7 {[%clk 0:00:14]}  Qfc5 {[%clk 0:00:14]} 70. Ka8 {[%clk 0:00:14]}  Qc4 {[%clk 0:00:14]} 71. Kb8 {[%clk 0:00:14]}  Qb1+ {[%clk 0:00:13]} 72. Ka7 {[%clk 0:00:15]}  Qca2# {[%clk 0:00:13]} 0-1


[Site "https://www.chess.com"]

[Event "Titled Tuesday Blitz January 17 Early 2023"]
[White "Janaszak, Dawid"]
[Black "Lacasa Diaz, Jose Antonio"]
[WhiteFideId "1119206"]
[BlackFideId "2203375"]
[WhiteElo "2316"]
[BlackElo "2359"]
[Result "1-0"]
[Round "10"]
[TimeControl "180+2"]
[Date "2023.01.17"]
[WhiteClock "0:00:34"]
[BlackClock "0:00:16"]

1. e4 {[%clk 0:03:00]}  c5 {[%clk 0:02:59]} 2. Nc3 {[%clk 0:02:59]}  g6 {[%clk 0:02:59]} 3. Bc4 {[%clk 0:02:58]}  Bg7 {[%clk 0:02:58]} 4. h4 {[%clk 0:02:58]}  h5 {[%clk 0:02:55]} 5. Qf3 {[%clk 0:02:58]}  e6 {[%clk 0:02:53]} 6. d4 {[%clk 0:02:58]}  a6 {[%clk 0:02:26]} 7. dxc5 {[%clk 0:02:52]}  Qc7 {[%clk 0:02:20]} 8. Be3 {[%clk 0:02:41]}  Nc6 {[%clk 0:02:20]} 9. O-O-O {[%clk 0:02:37]}  Bxc3 {[%clk 0:02:15]} 10. bxc3 {[%clk 0:02:36]}  Qa5 {[%clk 0:01:56]} 11. Kb2 {[%clk 0:02:27]}  Ne5 {[%clk 0:01:51]} 12. Qe2 {[%clk 0:02:27]}  Ne7 {[%clk 0:01:41]} 13. Bb3 {[%clk 0:02:23]}  Ng4 {[%clk 0:01:34]} 14. Bd4 {[%clk 0:02:13]}  e5 {[%clk 0:01:33]} 15. Be3 {[%clk 0:02:05]}  Nxe3 {[%clk 0:01:29]} 16. Qxe3 {[%clk 0:02:06]}  Qc7 {[%clk 0:01:07]} 17. Nf3 {[%clk 0:01:52]}  a5 {[%clk 0:01:00]} 18. a4 {[%clk 0:01:41]}  Rb8 {[%clk 0:00:59]} 19. Ng5 {[%clk 0:01:36]}  Rf8 {[%clk 0:00:54]} 20. Rd6 {[%clk 0:01:30]}  b5 {[%clk 0:00:50]} 21. Ra1 {[%clk 0:01:03]}  bxa4 {[%clk 0:00:48]} 22. Rxa4 {[%clk 0:01:04]}  Bb7 {[%clk 0:00:34]} 23. Nh7 {[%clk 0:00:56]}  Bc6 {[%clk 0:00:30]} 24. Qh6 {[%clk 0:00:34]}  Rg8 {[%clk 0:00:19]} 25. Nf6+ {[%clk 0:00:34]}  Kd8 {[%clk 0:00:19]} 26. Nxg8 {[%clk 0:00:34]}  Bxa4 {[%clk 0:00:16]} 27. Qf8# {[%clk 0:00:34]} 1-0


[Site "https://www.chess.com"]

[Event "Titled Tuesday Blitz January 17 Early 2023"]
[White "Kamalidenova, Meruert"]
[Black "Sargissyan, Sargis"]
[WhiteFideId "13712802"]
[BlackFideId "13303210"]
[WhiteElo "2350"]
[BlackElo "2234"]
[Result "0-1"]
[Round "10"]
[TimeControl "180+2"]
[Date "2023.01.17"]
[WhiteClock "0:00:13"]
[BlackClock "0:00:08"]

1. d4 {[%clk 0:03:00]}  Nf6 {[%clk 0:02:59]} 2. c4 {[%clk 0:03:00]}  g6 {[%clk 0:02:59]} 3. Nc3 {[%clk 0:03:00]}  d5 {[%clk 0:03:00]} 4. Nf3 {[%clk 0:02:56]}  Bg7 {[%clk 0:03:00]} 5. Bf4 {[%clk 0:02:54]}  O-O {[%clk 0:02:55]} 6. e3 {[%clk 0:02:54]}  c5 {[%clk 0:02:52]} 7. Rc1 {[%clk 0:02:52]}  cxd4 {[%clk 0:02:52]} 8. exd4 {[%clk 0:02:51]}  Nc6 {[%clk 0:02:49]} 9. Be2 {[%clk 0:02:44]}  dxc4 {[%clk 0:02:47]} 10. Bxc4 {[%clk 0:02:36]}  Bg4 {[%clk 0:02:47]} 11. O-O {[%clk 0:02:28]}  Bxf3 {[%clk 0:02:36]} 12. Qxf3 {[%clk 0:02:25]}  Qxd4 {[%clk 0:02:31]} 13. Nb5 {[%clk 0:02:10]}  Qxb2 {[%clk 0:01:59]} 14. Rb1 {[%clk 0:02:03]}  Qc2 {[%clk 0:01:55]} 15. Bd3 {[%clk 0:01:45]}  Qxa2 {[%clk 0:01:53]} 16. Nc7 {[%clk 0:01:41]}  Rac8 {[%clk 0:01:41]} 17. Rxb7 {[%clk 0:01:37]}  Nd4 {[%clk 0:01:35]} 18. Qe3 {[%clk 0:01:26]}  Nd5 {[%clk 0:01:14]} 19. Nxd5 {[%clk 0:01:21]}  Qxd5 {[%clk 0:01:13]} 20. Rxe7 {[%clk 0:01:17]}  Ne6 {[%clk 0:01:10]} 21. Be4 {[%clk 0:01:04]}  Qc5 {[%clk 0:00:52]} 22. Rb7 {[%clk 0:00:50]}  Nxf4 {[%clk 0:00:47]} 23. Qxf4 {[%clk 0:00:49]}  a5 {[%clk 0:00:43]} 24. Bb1 {[%clk 0:00:41]}  Be5 {[%clk 0:00:38]} 25. Qf3 {[%clk 0:00:40]}  Rc7 {[%clk 0:00:33]} 26. Ba2 {[%clk 0:00:37]}  Rxb7 {[%clk 0:00:32]} 27. Qxb7 {[%clk 0:00:37]}  Qc7 {[%clk 0:00:27]} 28. Qxc7 {[%clk 0:00:34]}  Bxc7 {[%clk 0:00:27]} 29. Rc1 {[%clk 0:00:34]}  Bd6 {[%clk 0:00:20]} 30. Rd1 {[%clk 0:00:31]}  Re8 {[%clk 0:00:16]} 31. g3 {[%clk 0:00:27]}  Bc5 {[%clk 0:00:13]} 32. Rd5 {[%clk 0:00:25]}  Bb4 {[%clk 0:00:13]} 33. Rd7 {[%clk 0:00:24]}  Re7 {[%clk 0:00:12]} 34. Rxe7 {[%clk 0:00:24]}  Bxe7 {[%clk 0:00:12]} 35. Kf1 {[%clk 0:00:25]}  Kg7 {[%clk 0:00:12]} 36. f3 {[%clk 0:00:26]}  Kf6 {[%clk 0:00:12]} 37. h3 {[%clk 0:00:26]}  Bd6 {[%clk 0:00:11]} 38. f4 {[%clk 0:00:24]}  h5 {[%clk 0:00:10]} 39. Ke2 {[%clk 0:00:23]}  h4 {[%clk 0:00:11]} 40. gxh4 {[%clk 0:00:18]}  Bxf4 {[%clk 0:00:10]} 41. Kf3 {[%clk 0:00:18]}  Bc1 {[%clk 0:00:10]} 42. Kg4 {[%clk 0:00:18]}  Kg7 {[%clk 0:00:10]} 43. Bb1 {[%clk 0:00:14]}  f5+ {[%clk 0:00:08]} 44. Kf3 {[%clk 0:00:15]}  Kf6 {[%clk 0:00:08]} 45. Kg3 {[%clk 0:00:13]}  Bd2 {[%clk 0:00:08]} 46. Kf2 {[%clk 0:00:11]}  Bb4 {[%clk 0:00:07]} 47. Bc2 {[%clk 0:00:12]}  Bd6 {[%clk 0:00:06]} 48. Bb1 {[%clk 0:00:12]}  Bc5+ {[%clk 0:00:07]} 49. Kf3 {[%clk 0:00:11]}  Bb4 {[%clk 0:00:07]} 50. Kf2 {[%clk 0:00:11]}  Be7 {[%clk 0:00:07]} 51. Bc2 {[%clk 0:00:11]}  Bd6 {[%clk 0:00:07]} 52. Kf3 {[%clk 0:00:11]}  Be5 {[%clk 0:00:07]} 53. Kf2 {[%clk 0:00:11]}  Bc3 {[%clk 0:00:07]} 54. Bb1 {[%clk 0:00:10]}  a4 {[%clk 0:00:07]} 55. Bc2 {[%clk 0:00:09]}  a3 {[%clk 0:00:08]} 56. Bb1 {[%clk 0:00:10]}  Bb4 {[%clk 0:00:08]} 57. Ke2 {[%clk 0:00:10]}  Bd6 {[%clk 0:00:07]} 58. Kf3 {[%clk 0:00:10]}  Bb4 {[%clk 0:00:07]} 59. Ke2 {[%clk 0:00:11]}  Ke5 {[%clk 0:00:08]} 60. Kf3 {[%clk 0:00:11]}  Be1 {[%clk 0:00:07]} 61. h5 {[%clk 0:00:11]}  gxh5 {[%clk 0:00:08]} 62. Ke2 {[%clk 0:00:12]}  Bb4 {[%clk 0:00:08]} 63. Kf3 {[%clk 0:00:12]}  Bc5 {[%clk 0:00:08]} 64. Ke2 {[%clk 0:00:12]}  Bd6 {[%clk 0:00:07]} 65. Kf3 {[%clk 0:00:13]}  h4 {[%clk 0:00:06]} 66. Ba2 {[%clk 0:00:13]}  Kd4 {[%clk 0:00:05]} 67. Bb1 {[%clk 0:00:13]}  Bg3 {[%clk 0:00:02]} 68. Ba2 {[%clk 0:00:11]}  Kc3 {[%clk 0:00:02]} 69. Be6 {[%clk 0:00:10]}  Kb2 {[%clk 0:00:03]} 70. Ke3 {[%clk 0:00:10]}  a2 {[%clk 0:00:04]} 71. Bxa2 {[%clk 0:00:10]}  Kxa2 {[%clk 0:00:04]} 72. Kd4 {[%clk 0:00:10]}  Kb3 {[%clk 0:00:05]} 73. Ke3 {[%clk 0:00:11]}  Kc3 {[%clk 0:00:05]} 74. Kf3 {[%clk 0:00:12]}  Kd3 {[%clk 0:00:05]} 75. Kg2 {[%clk 0:00:12]}  Ke2 {[%clk 0:00:06]} 76. Kh1 {[%clk 0:00:12]}  f4 {[%clk 0:00:07]} 77. Kg2 {[%clk 0:00:13]}  f3+ {[%clk 0:00:07]} 78. Kh1 {[%clk 0:00:12]}  Bf4 {[%clk 0:00:07]} 79. Kg1 {[%clk 0:00:12]}  f2+ {[%clk 0:00:08]} 80. Kg2 {[%clk 0:00:13]}  f1=Q# {[%clk 0:00:08]} 0-1


[Site "https://www.chess.com"]

[Event "Titled Tuesday Blitz January 17 Early 2023"]
[White "Rosenberg, Evan S"]
[Black "Yuan, Qingyu"]
[WhiteFideId "2019299"]
[BlackFideId "8609772"]
[WhiteElo "1956"]
[BlackElo "2373"]
[Result "1/2-1/2"]
[Round "10"]
[TimeControl "180+2"]
[Date "2023.01.17"]
[WhiteClock "0:00:31"]
[BlackClock "0:01:10"]

1. d4 {[%clk 0:03:00]}  d5 {[%clk 0:02:59]} 2. Nf3 {[%clk 0:03:00]}  Nf6 {[%clk 0:03:00]} 3. c3 {[%clk 0:03:01]}  e6 {[%clk 0:02:54]} 4. Bf4 {[%clk 0:02:59]}  Bd6 {[%clk 0:02:55]} 5. e3 {[%clk 0:02:59]}  O-O {[%clk 0:02:53]} 6. Nbd2 {[%clk 0:02:58]}  c5 {[%clk 0:02:46]} 7. Bg3 {[%clk 0:02:57]}  Qc7 {[%clk 0:02:40]} 8. Bd3 {[%clk 0:02:53]}  Nbd7 {[%clk 0:02:39]} 9. Qe2 {[%clk 0:02:33]}  e5 {[%clk 0:02:34]} 10. dxe5 {[%clk 0:02:13]}  Nxe5 {[%clk 0:02:35]} 11. Nxe5 {[%clk 0:02:13]}  Bxe5 {[%clk 0:02:35]} 12. Nf3 {[%clk 0:02:10]}  Bxg3 {[%clk 0:02:21]} 13. hxg3 {[%clk 0:02:08]}  h6 {[%clk 0:02:06]} 14. O-O-O {[%clk 0:01:59]}  Bg4 {[%clk 0:02:05]} 15. Bc2 {[%clk 0:01:52]}  b5 {[%clk 0:02:01]} 16. Rh4 {[%clk 0:01:39]}  b4 {[%clk 0:01:52]} 17. Rdh1 {[%clk 0:01:39]}  bxc3 {[%clk 0:01:50]} 18. bxc3 {[%clk 0:01:39]}  Qa5 {[%clk 0:01:45]} 19. Rxg4 {[%clk 0:01:24]}  Nxg4 {[%clk 0:01:35]} 20. Ng5 {[%clk 0:00:55]}  Nf6 {[%clk 0:01:30]} 21. Qd3 {[%clk 0:00:33]}  hxg5 {[%clk 0:01:17]} 22. Qh7+ {[%clk 0:00:28]}  Nxh7 {[%clk 0:01:08]} 23. Bxh7+ {[%clk 0:00:29]}  Kh8 {[%clk 0:01:09]} 24. Bg6+ {[%clk 0:00:29]}  Kg8 {[%clk 0:01:09]} 25. Bh7+ {[%clk 0:00:30]}  Kh8 {[%clk 0:01:09]} 26. Bg6+ {[%clk 0:00:31]}  Kg8 {[%clk 0:01:10]} 27. Bh7+ {[%clk 0:00:31]} 1/2-1/2


[Site "https://www.chess.com"]

[Event "Titled Tuesday Blitz January 17 Early 2023"]
[White "Makhnev, Denis"]
[Black "Kozin, Yuri"]
[WhiteFideId "13707647"]
[BlackFideId "4129920"]
[WhiteElo "2483"]
[BlackElo "2251"]
[Result "1-0"]
[Round "10"]
[TimeControl "180+2"]
[Date "2023.01.17"]
[WhiteClock "0:00:23"]
[BlackClock "0:00:01"]

1. Nf3 {[%clk 0:03:00]}  d5 {[%clk 0:02:59]} 2. c4 {[%clk 0:03:00]}  c6 {[%clk 0:02:57]} 3. cxd5 {[%clk 0:03:00]}  cxd5 {[%clk 0:02:57]} 4. d4 {[%clk 0:03:01]}  Nc6 {[%clk 0:02:53]} 5. Nc3 {[%clk 0:03:02]}  Nf6 {[%clk 0:02:53]} 6. Bf4 {[%clk 0:03:01]}  Bg4 {[%clk 0:02:53]} 7. Ne5 {[%clk 0:03:00]}  Qb6 {[%clk 0:02:50]} 8. Nxg4 {[%clk 0:02:58]}  Nxg4 {[%clk 0:02:50]} 9. Nxd5 {[%clk 0:02:53]}  Qa5+ {[%clk 0:02:50]} 10. Nc3 {[%clk 0:02:53]}  e5 {[%clk 0:02:51]} 11. dxe5 {[%clk 0:02:16]}  Qb6 {[%clk 0:02:42]} 12. Ne4 {[%clk 0:01:39]}  Bb4+ {[%clk 0:01:28]} 13. Bd2 {[%clk 0:01:37]}  O-O {[%clk 0:01:03]} 14. e3 {[%clk 0:01:31]}  Ncxe5 {[%clk 0:00:52]} 15. Be2 {[%clk 0:01:26]}  Rad8 {[%clk 0:00:31]} 16. Bxg4 {[%clk 0:01:15]}  Nxg4 {[%clk 0:00:19]} 17. Qxg4 {[%clk 0:01:14]}  Bxd2+ {[%clk 0:00:19]} 18. Nxd2 {[%clk 0:01:13]}  Qxb2 {[%clk 0:00:17]} 19. Rd1 {[%clk 0:01:05]}  Rd6 {[%clk 0:00:14]} 20. Nb1 {[%clk 0:00:50]}  Rxd1+ {[%clk 0:00:03]} 21. Qxd1 {[%clk 0:00:49]}  Qb4+ {[%clk 0:00:04]} 22. Nd2 {[%clk 0:00:38]}  Rd8 {[%clk 0:00:03]} 23. Qc2 {[%clk 0:00:39]}  a5 {[%clk 0:00:02]} 24. Ke2 {[%clk 0:00:36]}  Qb5+ {[%clk 0:00:03]} 25. Nc4 {[%clk 0:00:35]}  Rc8 {[%clk 0:00:03]} 26. Rc1 {[%clk 0:00:35]}  Qh5+ {[%clk 0:00:02]} 27. f3 {[%clk 0:00:31]}  Qxh2 {[%clk 0:00:02]} 28. Kf2 {[%clk 0:00:29]}  b5 {[%clk 0:00:02]} 29. Qf5 {[%clk 0:00:27]}  Qh4+ {[%clk 0:00:02]} 30. Kg1 {[%clk 0:00:24]}  Rxc4 {[%clk 0:00:01]} 31. Qc8+ {[%clk 0:00:23]} 1-0


[Site "https://www.chess.com"]

[Event "Titled Tuesday Blitz January 17 Early 2023"]
[White "Balabayeva, Xeniya"]
[Black "Gurvich, Vitaly"]
[WhiteFideId "13719688"]
[BlackFideId "24164852"]
[WhiteElo "2191"]
[BlackElo "2278"]
[Result "0-1"]
[Round "10"]
[TimeControl "180+2"]
[Date "2023.01.17"]
[WhiteClock "0:00:07"]
[BlackClock "0:01:39"]

1. d4 {[%clk 0:03:00]}  Nf6 {[%clk 0:02:59]} 2. c4 {[%clk 0:03:00]}  e6 {[%clk 0:02:59]} 3. Nc3 {[%clk 0:02:59]}  Bb4 {[%clk 0:02:58]} 4. Bd2 {[%clk 0:02:57]}  O-O {[%clk 0:02:57]} 5. Nf3 {[%clk 0:02:56]}  d6 {[%clk 0:02:57]} 6. a3 {[%clk 0:02:53]}  Bxc3 {[%clk 0:02:58]} 7. Bxc3 {[%clk 0:02:53]}  Ne4 {[%clk 0:02:58]} 8. Rc1 {[%clk 0:02:47]}  Nxc3 {[%clk 0:02:58]} 9. Rxc3 {[%clk 0:02:46]}  Qe7 {[%clk 0:02:59]} 10. e4 {[%clk 0:02:44]}  e5 {[%clk 0:02:58]} 11. dxe5 {[%clk 0:02:24]}  dxe5 {[%clk 0:02:59]} 12. Bd3 {[%clk 0:02:24]}  Bg4 {[%clk 0:02:57]} 13. h3 {[%clk 0:02:18]}  Bxf3 {[%clk 0:02:56]} 14. Qxf3 {[%clk 0:02:17]}  Nc6 {[%clk 0:02:57]} 15. O-O {[%clk 0:02:16]}  Nd4 {[%clk 0:02:57]} 16. Qe3 {[%clk 0:02:15]}  Rad8 {[%clk 0:02:56]} 17. Bb1 {[%clk 0:02:14]}  a5 {[%clk 0:02:56]} 18. Kh2 {[%clk 0:02:10]}  c6 {[%clk 0:02:56]} 19. f4 {[%clk 0:02:00]}  exf4 {[%clk 0:02:55]} 20. Rxf4 {[%clk 0:01:53]}  Qe5 {[%clk 0:02:53]} 21. g3 {[%clk 0:01:48]}  g6 {[%clk 0:02:50]} 22. Rc1 {[%clk 0:01:47]}  c5 {[%clk 0:02:50]} 23. Rcf1 {[%clk 0:01:46]}  b6 {[%clk 0:02:50]} 24. Qf2 {[%clk 0:01:43]}  Ne6 {[%clk 0:02:50]} 25. Rxf7 {[%clk 0:01:39]}  Rxf7 {[%clk 0:02:38]} 26. Qxf7+ {[%clk 0:01:38]}  Kh8 {[%clk 0:02:39]} 27. Qf2 {[%clk 0:01:37]}  Rf8 {[%clk 0:02:37]} 28. Qg2 {[%clk 0:01:35]}  Rxf1 {[%clk 0:02:37]} 29. Qxf1 {[%clk 0:01:35]}  Qxb2+ {[%clk 0:02:38]} 30. Kg1 {[%clk 0:01:31]}  Kg7 {[%clk 0:02:37]} 31. Bd3 {[%clk 0:01:28]}  Qd4+ {[%clk 0:02:34]} 32. Kg2 {[%clk 0:01:26]}  Qe3 {[%clk 0:02:33]} 33. Bb1 {[%clk 0:01:14]}  Nd4 {[%clk 0:02:29]} 34. Qf4 {[%clk 0:01:09]}  Qe2+ {[%clk 0:02:26]} 35. Kh1 {[%clk 0:00:59]}  Qe1+ {[%clk 0:02:14]} 36. Kg2 {[%clk 0:00:58]}  Qxb1 {[%clk 0:02:12]} 37. Qe5+ {[%clk 0:00:58]}  Kf7 {[%clk 0:02:12]} 38. Qd5+ {[%clk 0:00:54]}  Ke7 {[%clk 0:02:12]} 39. Qb7+ {[%clk 0:00:49]}  Kf6 {[%clk 0:02:08]} 40. e5+ {[%clk 0:00:50]}  Kxe5 {[%clk 0:02:04]} 41. Qd5+ {[%clk 0:00:48]}  Kf6 {[%clk 0:02:04]} 42. Qd8+ {[%clk 0:00:46]}  Ke6 {[%clk 0:01:56]} 43. Qe8+ {[%clk 0:00:11]}  Kf5 {[%clk 0:01:40]} 44. Qf7+ {[%clk 0:00:09]}  Ke4 {[%clk 0:01:39]} 45. Qf4+ {[%clk 0:00:07]}  Kd3 {[%clk 0:01:39]} 0-1


[Site "https://www.chess.com"]

[Event "Titled Tuesday Blitz January 17 Early 2023"]
[White "Vovk, Orest"]
[Black "Weetik, Vjacheslav"]
[WhiteFideId "14113490"]
[BlackFideId "4153472"]
[WhiteElo "2315"]
[BlackElo "2423"]
[Result "0-1"]
[Round "10"]
[TimeControl "180+2"]
[Date "2023.01.17"]
[WhiteClock "0:00:02"]
[BlackClock "0:00:20"]

1. h4 {[%clk 0:02:32]}  a5 {[%clk 0:02:51]} 2. h5 {[%clk 0:02:29]}  a4 {[%clk 0:02:50]} 3. a3 {[%clk 0:02:26]}  h6 {[%clk 0:02:49]} 4. Nc3 {[%clk 0:02:26]}  d5 {[%clk 0:02:42]} 5. e4 {[%clk 0:02:24]}  dxe4 {[%clk 0:02:35]} 6. Nxe4 {[%clk 0:02:23]}  Bf5 {[%clk 0:02:29]} 7. Qf3 {[%clk 0:02:21]}  e6 {[%clk 0:02:27]} 8. Ng3 {[%clk 0:02:13]}  Bxc2 {[%clk 0:02:24]} 9. Qxb7 {[%clk 0:02:12]}  Nd7 {[%clk 0:02:23]} 10. Bb5 {[%clk 0:02:03]}  Nf6 {[%clk 0:02:21]} 11. Nf3 {[%clk 0:01:53]}  Bd6 {[%clk 0:02:04]} 12. Qc6 {[%clk 0:01:48]}  Bb3 {[%clk 0:01:55]} 13. d4 {[%clk 0:01:41]}  O-O {[%clk 0:01:48]} 14. Ne4 {[%clk 0:01:34]}  Bd5 {[%clk 0:01:44]} 15. Nxf6+ {[%clk 0:01:34]}  Nxf6 {[%clk 0:01:45]} 16. Qc3 {[%clk 0:01:26]}  Ne4 {[%clk 0:01:33]} 17. Qe3 {[%clk 0:01:22]}  c5 {[%clk 0:01:28]} 18. Bd3 {[%clk 0:01:13]}  f5 {[%clk 0:01:27]} 19. O-O {[%clk 0:01:05]}  cxd4 {[%clk 0:01:12]} 20. Qxd4 {[%clk 0:01:05]}  Bc5 {[%clk 0:01:06]} 21. Qe5 {[%clk 0:01:01]}  Qb6 {[%clk 0:01:06]} 22. Bxe4 {[%clk 0:00:25]}  fxe4 {[%clk 0:01:05]} 23. Nh2 {[%clk 0:00:24]}  Bxf2+ {[%clk 0:00:57]} 24. Kh1 {[%clk 0:00:24]}  Rf5 {[%clk 0:00:57]} 25. Qc3 {[%clk 0:00:21]}  e3 {[%clk 0:00:49]} 26. b4 {[%clk 0:00:12]}  Rxh5 {[%clk 0:00:28]} 27. Bb2 {[%clk 0:00:08]}  Rg5 {[%clk 0:00:21]} 28. Qc5 {[%clk 0:00:02]}  Bxg2# {[%clk 0:00:20]} 0-1


[Site "https://www.chess.com"]

[Event "Titled Tuesday Blitz January 17 Early 2023"]
[White "Mayank Chakraborty"]
[Black "Belozerov, Andrei"]
[WhiteFideId "25659766"]
[BlackFideId "4120213"]
[WhiteElo "2025"]
[BlackElo "2461"]
[Result "1-0"]
[Round "10"]
[TimeControl "180+2"]
[Date "2023.01.17"]
[WhiteClock "0:00:48"]
[BlackClock "0:00:12"]

1. e4 {[%clk 0:03:00]}  c5 {[%clk 0:02:58]} 2. Nf3 {[%clk 0:03:00]}  Nc6 {[%clk 0:02:58]} 3. d4 {[%clk 0:02:59]}  cxd4 {[%clk 0:02:58]} 4. Nxd4 {[%clk 0:03:00]}  Nf6 {[%clk 0:02:59]} 5. Nc3 {[%clk 0:03:00]}  e5 {[%clk 0:02:59]} 6. Ndb5 {[%clk 0:02:58]}  d6 {[%clk 0:02:59]} 7. Nd5 {[%clk 0:02:59]}  Nxd5 {[%clk 0:02:59]} 8. exd5 {[%clk 0:02:59]}  Nb8 {[%clk 0:02:59]} 9. Qf3 {[%clk 0:02:57]}  a6 {[%clk 0:02:35]} 10. Qa3 {[%clk 0:02:56]}  Be7 {[%clk 0:02:36]} 11. Bg5 {[%clk 0:02:55]}  f6 {[%clk 0:02:34]} 12. Bd2 {[%clk 0:02:54]}  O-O {[%clk 0:02:28]} 13. Bb4 {[%clk 0:02:53]}  Bd7 {[%clk 0:01:57]} 14. Bxd6 {[%clk 0:02:29]}  Bxd6 {[%clk 0:01:54]} 15. Nxd6 {[%clk 0:02:28]}  b5 {[%clk 0:01:24]} 16. c4 {[%clk 0:02:11]}  bxc4 {[%clk 0:01:19]} 17. Bxc4 {[%clk 0:02:06]}  Qb6 {[%clk 0:01:19]} 18. O-O {[%clk 0:02:05]}  a5 {[%clk 0:01:16]} 19. Ne4 {[%clk 0:01:59]}  Na6 {[%clk 0:01:14]} 20. Bxa6 {[%clk 0:01:57]}  Qxa6 {[%clk 0:01:04]} 21. Rac1 {[%clk 0:01:42]}  Bf5 {[%clk 0:00:54]} 22. Rc6 {[%clk 0:01:33]}  Qb5 {[%clk 0:00:47]} 23. Nd6 {[%clk 0:01:33]}  Qd3 {[%clk 0:00:40]} 24. Rc3 {[%clk 0:01:26]}  Qxd5 {[%clk 0:00:28]} 25. Nxf5 {[%clk 0:01:25]}  Kh8 {[%clk 0:00:29]} 26. Ne3 {[%clk 0:01:25]}  Qb5 {[%clk 0:00:26]} 27. Rc5 {[%clk 0:01:23]}  Qe2 {[%clk 0:00:26]} 28. Rc2 {[%clk 0:01:19]}  Qb5 {[%clk 0:00:25]} 29. Rfc1 {[%clk 0:01:18]}  Rfd8 {[%clk 0:00:23]} 30. h3 {[%clk 0:01:19]}  a4 {[%clk 0:00:23]} 31. Qe7 {[%clk 0:01:17]}  Re8 {[%clk 0:00:20]} 32. Qf7 {[%clk 0:01:16]}  Rf8 {[%clk 0:00:20]} 33. Qd5 {[%clk 0:01:16]}  Qb6 {[%clk 0:00:19]} 34. Qc5 {[%clk 0:01:07]}  Qa6 {[%clk 0:00:19]} 35. Qa3 {[%clk 0:01:03]}  Qb5 {[%clk 0:00:18]} 36. Rc7 {[%clk 0:01:02]}  Rfd8 {[%clk 0:00:16]} 37. Qe7 {[%clk 0:01:01]}  Rg8 {[%clk 0:00:16]} 38. Nf5 {[%clk 0:01:01]}  Rae8 {[%clk 0:00:16]} 39. Qa3 {[%clk 0:00:49]}  Qb6 {[%clk 0:00:13]} 40. Nd6 {[%clk 0:00:48]}  Ref8 {[%clk 0:00:11]} 41. Nf7+ {[%clk 0:00:48]}  Rxf7 {[%clk 0:00:12]} 42. Rxf7 {[%clk 0:00:48]}  e4 {[%clk 0:00:12]} 43. Re7 {[%clk 0:00:48]} 1-0


[Site "https://www.chess.com"]